fUSD/lending_fUSD_20260208
["ID","MTS","AMOUNT","RATE_DAILY","PERIOD"]
[404776036,1770533892321,-829.01506934,0.00034866,7]
[404776037,1770533892348,-829.01506934,0.00034866,7]
[404776038,1770533892377,-829.01506934,0.00034866,7]
[404776039,1770533892404,-829.01506934,0.00034866,7]
[404776040,1770533892431,-829.01506934,0.00034866,7]
[404776041,1770533892458,-829.01506934,0.00034866,7]
[404776042,1770533892484,-829.01506934,0.00034866,7]
[404776043,1770533892511,-829.01506934,0.00034866,7]
[404776044,1770533892543,-829.01506934,0.00034866,7]
[404776045,1770533892572,-829.01506934,0.00034866,7]
[404776046,1770533892602,-829.01506934,0.00034866,7]
[404776047,1770533892631,-829.01506934,0.00034866,7]
[404776048,1770533892659,-829.01506934,0.00034866,7]
[404776049,1770533892693,-829.01506934,0.00034866,7]
[404776050,1770533892722,-829.01506934,0.00034866,7]
[404776051,1770533892749,-829.01506934,0.00034866,7]
[404776052,1770533892779,-829.01506934,0.00034866,7]
[404776053,1770533892809,-829.01506934,0.00034866,7]
[404776054,1770533892838,-829.01506934,0.00034866,7]
[404776055,1770533892867,-829.01506934,0.00034866,7]
[404776056,1770533892896,-829.01506934,0.00034866,7]
[404776057,1770533892935,-829.01506934,0.00034866,7]
[404776058,1770533892964,-829.01506934,0.00034866,7]
[404776059,1770533892993,-829.01506934,0.00034866,7]
[404776060,1770533893019,-829.01506934,0.00034866,7]
[404776061,1770533893046,-829.01506934,0.00034866,7]
[404776062,1770533893075,-829.01506934,0.00034866,7]
[404776063,1770533893101,-829.01506934,0.00034866,7]
[404776064,1770533893129,-829.01506934,0.00034866,7]
[404776065,1770533893155,-829.01506934,0.00034866,7]
[404776066,1770533893184,-829.01506934,0.00034866,7]
[404776067,1770533893213,-829.01506934,0.00034866,7]
[404776068,1770533893241,-829.01506934,0.00034866,7]
[404776069,1770533893281,-843.42746755,0.00034866,7]
[404776070,1770533893309,-843.42746755,0.00034866,7]
[404776071,1770533893337,-843.42746755,0.00034866,7]
[404776072,1770533893364,-843.42746755,0.00034866,7]
[404776073,1770533893391,-843.42746755,0.00034866,7]
[404776074,1770533893418,-843.42746755,0.00034866,7]
[404776075,1770533893446,-843.42746755,0.00034866,7]
[404776076,1770533893472,-843.42746755,0.00034866,7]
[404776077,1770533893499,-843.42746755,0.00034866,7]
[404776078,1770533893528,-843.42746755,0.00034866,7]
[404776079,1770533893555,-843.42746755,0.00034866,7]
[404776080,1770533893581,-843.42746755,0.00034866,7]
[404776081,1770533893609,-843.42746755,0.00034866,7]
[404776082,1770533893636,-843.42746755,0.00034866,7]
[404776083,1770533893664,-843.42746755,0.00034866,7]
[404776084,1770533893698,-843.42746755,0.00034866,7]
[404776085,1770533893726,-843.42746755,0.00034866,7]
[404776086,1770533893755,-843.42746755,0.00034866,7]
[404776087,1770533893787,-843.42746755,0.00034866,7]
[404776088,1770533893817,-843.42746755,0.00034866,7]
[404776089,1770533893847,-772.62566729,0.00034866,7]
[404776090,1770533893884,-70.80180026,0.00034866,7]
[404776091,1770533893915,-843.42746755,0.00034866,7]
[404776092,1770533893947,-843.42746755,0.00034866,7]
[404776093,1770533893979,-843.42746755,0.00034866,7]
[404776094,1770533894008,-843.42746755,0.00034866,7]
[404776095,1770533894037,-843.42746755,0.00034866,7]
[404776096,1770533894069,-843.42746755,0.00034866,7]
[404776097,1770533894098,-843.42746755,0.00034866,7]
[404776098,1770533894127,-843.42746755,0.00034866,7]
[404776099,1770533894345,-843.42746755,0.00034866,7]
[404776100,1770533894376,-843.42746755,0.00034866,7]
[404776101,1770533894406,-843.42746753,0.00034866,7]
[404776102,1770533894434,-843.42746753,0.00034866,7]
[404776103,1770533894464,-843.42746753,0.00034866,7]
[404776104,1770533894499,-843.42746753,0.00034866,7]
[404776105,1770533894530,-843.42746753,0.00034866,7]
[404776106,1770533894559,-843.42746753,0.00034866,7]
[404776107,1770533894590,-843.42746753,0.00034866,7]
[404776108,1770533894622,-843.4274675,0.00034866,7]
[404776109,1770533894652,-500.0,0.00034866,7]
[404776110,1770533894682,-500.0,0.00034866,7]
[404776111,1770533894714,-271.97040592,0.00034866,7]
[404776112,1770533894740,-9999.99,0.00034867,2]
[404776113,1770533894770,-23475.54337811,0.00034867,2]
[404776114,1770533894805,-50000.0,0.00034867,2]
[404776115,1770533894839,-50000.0,0.00034867,2]
[404776116,1770533894876,-50000.0,0.00034867,2]
[404776117,1770533895429,-50000.0,0.00034867,2]
[404776118,1770533895814,-50000.0,0.00034867,2]
[404776119,1770533896514,-50000.0,0.00034867,2]
[404776121,1770533897089,-177.41147284,0.000348,2]
[404776122,1770533897119,-49822.58852716,0.00034867,2]
[404776123,1770533898945,-50000.0,0.00034867,2]
[404776125,1770533910097,-257.26947708,0.000348,2]
[404776126,1770533910123,-1821.28164028,0.000348,2]
[404776127,1770533910148,-214.0,0.00034867,2]
[404776128,1770533910177,-30939.44888264,0.00034867,2]
[404776140,1770534029149,1457.64217,0.0003,120]
[404776146,1770534075406,10000.0,0.000356,30]
[404776147,1770534084758,359.27,0.00025,2]
[404776148,1770534097666,752.19,0.00035616,42]
[404776149,1770534135556,151.0,0.00035616,30]
[404776150,1770534136193,156.587,0.00035616,30]
[404776151,1770534136847,162.380719,0.00035616,30]
[404776152,1770534137521,168.3888056,0.00035616,30]
[404776153,1770534138693,174.61919141,0.00035616,30]
[404776154,1770534139362,181.08010149,0.00035616,30]
[404776155,1770534139972,187.78006525,0.00035616,30]
[404776156,1770534140646,194.72792766,0.00035616,30]
[404776157,1770534141286,201.93286099,0.00035616,30]
[404776158,1770534141989,209.40437684,0.00035616,30]
[404776159,1770534142675,217.15233878,0.00035616,30]
[404776160,1770534143316,225.18697532,0.00035616,30]
[404776161,1770534144040,233.51889341,0.00035616,30]
[404776162,1770534144559,242.15909246,0.00035616,30]
[404776163,1770534145200,251.11897888,0.00035616,30]
[404776164,1770534145814,260.4103811,0.00035616,30]
[404776165,1770534146451,270.0455652,0.00035616,30]
[404776166,1770534153233,280.03725112,0.00035616,30]
[404776167,1770534154296,290.39862941,0.00035616,30]
[404776168,1770534154948,301.1433787,0.00035616,30]
[404776174,1770534286143,1000.0,0.00035616,120]
[404776178,1770534334984,1000.0,0.00035616,120]
[404776184,1770534402935,240.94,0.00033729,30]
[404776185,1770534432124,151.0,0.00035616,30]
[404776186,1770534432791,156.587,0.00035616,30]
[404776187,1770534433493,162.380719,0.00035616,30]
[404776188,1770534434198,168.3888056,0.00035616,30]
[404776189,1770534434859,174.61919141,0.00035616,30]
[404776191,1770534435502,181.08010149,0.00035616,30]
[404776192,1770534436123,187.78006525,0.00035616,30]
[404776193,1770534436754,194.72792766,0.00035616,30]
[404776194,1770534437515,201.93286099,0.00035616,30]
[404776195,1770534438145,209.40437684,0.00035616,30]
[404776196,1770534438795,217.15233878,0.00035616,30]
[404776197,1770534439422,225.18697532,0.00035616,30]
[404776198,1770534440052,233.51889341,0.00035616,30]
[404776199,1770534440679,242.15909246,0.00035616,30]
[404776200,1770534441407,251.11897888,0.00035616,30]
[404776201,1770534442034,260.4103811,0.00035616,30]
[404776202,1770534442662,270.0455652,0.00035616,30]
[404776203,1770534443291,280.03725112,0.00035616,30]
[404776204,1770534443946,290.39862941,0.00035616,30]
[404776205,1770534444576,301.1433787,0.00035616,30]
[404776230,1770534632083,-735.90085166,0.00028131,2]
[404776240,1770534638038,-181.09914834,0.00028131,2]
[404776241,1770534638052,-1206.0,0.00028131,2]
[404776242,1770534638062,-3255.0,0.00028131,2]
[404776243,1770534638072,-2447.0,0.00028131,2]
[404776244,1770534638082,-16491.95815766,0.000299,2]
[404776245,1770534638092,-274.85798761,0.000299,2]
[404776246,1770534638102,-239.0,0.00029938,2]
[404776247,1770534638112,-207.23557636,0.00029938,2]
[404776248,1770534638123,-231.94622019,0.00029947,2]
[404776249,1770534638133,-195.28348214,0.00029947,2]
[404776250,1770534638143,-500.0,0.00029947,2]
[404776251,1770534638154,-500.0,0.00029947,2]
[404776252,1770534638164,-289.95212535,0.00029947,2]
[404776253,1770534638174,-500.0,0.00029947,2]
[404776254,1770534638184,-500.0,0.00029947,2]
[404776255,1770534638194,-500.0,0.00029947,2]
[404776256,1770534638204,-500.0,0.00029947,2]
[404776257,1770534638214,-500.0,0.00029947,2]
[404776258,1770534638224,-500.0,0.00029947,2]
[404776259,1770534638234,-500.0,0.00029947,2]
[404776260,1770534638244,-500.0,0.00029947,2]
[404776261,1770534638254,-500.0,0.00029947,2]
[404776262,1770534638264,-512.16206027,0.00029947,2]
[404776263,1770534638274,-500.0,0.00029947,2]
[404776264,1770534638284,-500.0,0.00029947,2]
[404776265,1770534638294,-500.0,0.00029947,2]
[404776266,1770534638306,-500.0,0.00029947,2]
[404776267,1770534638315,-500.0,0.00029947,2]
[404776268,1770534638326,-500.0,0.00029947,2]
[404776270,1770534638336,-500.0,0.00029947,2]
[404776272,1770534638345,-441983.99204511,0.00029948,2]
[404776275,1770534638358,-2381.6089235,0.00029948,2]
[404776277,1770534638375,-918.3910765,0.00029948,2]
[404776279,1770534638387,-1554.53461667,0.00029948,2]
[404776282,1770534638399,-3847.83174617,0.00029948,2]
[404776284,1770534638415,-451.15504761,0.00029948,2]
[404776286,1770534638427,-5018.84606289,0.00029948,2]
[404776288,1770534638440,-653263.87874655,0.00029948,2]
[404776330,1770534640115,-347.73608874,0.00028131,2]
[404776331,1770534640303,-64.26391126,0.00028131,2]
[404776332,1770534640313,-521.11057882,0.00029948,2]
[404776333,1770534640326,-1280.8790409,0.00029948,2]
[404776334,1770534640337,-11140.9429633,0.00029948,2]
[404776342,1770534645882,-866.58472382,0.00029948,2]
[404776343,1770534645895,-680.76275655,0.00029948,2]
[404776344,1770534645918,-8898.50488439,0.00029948,2]
[404776402,1770534647427,-3856.02335261,0.00029948,2]
[404776408,1770534735661,151.0,0.00035616,30]
[404776409,1770534736351,156.587,0.00035616,30]
[404776410,1770534736982,162.380719,0.00035616,30]
[404776411,1770534737695,168.3888056,0.00035616,30]
[404776412,1770534739690,174.61919141,0.00035616,30]
[404776413,1770534743291,181.08010149,0.00035616,30]
[404776414,1770534744063,187.78006525,0.00035616,30]
[404776415,1770534744726,194.72792766,0.00035616,30]
[404776416,1770534745381,201.93286099,0.00035616,30]
[404776417,1770534746027,209.40437684,0.00035616,30]
[404776418,1770534746733,217.15233878,0.00035616,30]
[404776419,1770534747359,225.18697532,0.00035616,30]
[404776420,1770534747989,233.51889341,0.00035616,30]
[404776421,1770534748658,242.15909246,0.00035616,30]
[404776422,1770534750101,251.11897888,0.00035616,30]
[404776423,1770534750767,260.4103811,0.00035616,30]
[404776424,1770534751409,270.0455652,0.00035616,30]
[404776425,1770534752035,280.03725112,0.00035616,30]
[404776426,1770534752953,290.39862941,0.00035616,30]
[404776427,1770534753383,301.1433787,0.00035616,30]
[404776433,1770534857307,309.70588235,0.00035589,120]
[404776436,1770534958302,535.44,0.00033767,120]
[404776437,1770535037798,151.0,0.00035616,30]
[404776438,1770535038431,156.587,0.00035616,30]
[404776439,1770535039102,162.380719,0.00035616,30]
[404776440,1770535039736,168.3888056,0.00035616,30]
[404776441,1770535040446,174.61919141,0.00035616,30]
[404776442,1770535041075,181.08010149,0.00035616,30]
[404776443,1770535041979,187.78006525,0.00035616,30]
[404776444,1770535042559,194.72792766,0.00035616,30]
[404776445,1770535043071,201.93286099,0.00035616,30]
[404776446,1770535045508,209.40437684,0.00035616,30]
[404776447,1770535046152,217.15233878,0.00035616,30]
[404776448,1770535046804,225.18697532,0.00035616,30]
[404776449,1770535047434,233.51889341,0.00035616,30]
[404776450,1770535048095,242.15909246,0.00035616,30]
[404776451,1770535048707,251.11897888,0.00035616,30]
[404776452,1770535049475,260.4103811,0.00035616,30]
[404776453,1770535050104,270.0455652,0.00035616,30]
[404776454,1770535050793,280.03725112,0.00035616,30]
[404776455,1770535051408,290.39862941,0.00035616,30]
[404776456,1770535052029,301.1433787,0.00035616,30]
[404776458,1770535158587,227.20068962,0.00035,30]
[404776472,1770535217938,151.0,0.00025,2]
[404776518,1770535330232,151.0,0.00035616,30]
[404776519,1770535330856,156.587,0.00035616,30]
[404776525,1770535331802,162.380719,0.00035616,30]
[404776526,1770535332083,168.3888056,0.00035616,30]
[404776527,1770535332711,174.61919141,0.00035616,30]
[404776528,1770535333338,181.08010149,0.00035616,30]
[404776529,1770535333975,187.78006525,0.00035616,30]
[404776530,1770535334602,194.72792766,0.00035616,30]
[404776531,1770535335224,201.93286099,0.00035616,30]
[404776532,1770535335839,209.40437684,0.00035616,30]
[404776533,1770535336530,217.15233878,0.00035616,30]
[404776534,1770535337167,225.18697532,0.00035616,30]
[404776537,1770535337806,233.51889341,0.00035616,30]
[404776538,1770535338452,242.15909246,0.00035616,30]
[404776539,1770535339089,251.11897888,0.00035616,30]
[404776540,1770535339732,260.4103811,0.00035616,30]
[404776541,1770535340377,270.0455652,0.00035616,30]
[404776542,1770535341070,280.03725112,0.00035616,30]
[404776543,1770535341749,290.39862941,0.00035616,30]
[404776548,1770535342388,301.1433787,0.00035616,30]
[404776736,1770535611772,2618.47628025,0.000162,5]
[404776737,1770535619076,-183.17974977,0.000285,2]
[404776738,1770535619096,-175.49218331,0.000285,2]
[404776739,1770535619117,-4984.22815891,0.000285,2]
[404776801,1770535630377,151.0,0.00035616,30]
[404776802,1770535631133,156.587,0.00035616,30]
[404776803,1770535631793,162.380719,0.00035616,30]
[404776804,1770535632403,168.3888056,0.00035616,30]
[404776805,1770535633050,174.61919141,0.00035616,30]
[404776806,1770535639970,181.08010149,0.00035616,30]
[404776807,1770535640643,187.78006525,0.00035616,30]
[404776808,1770535641272,194.72792766,0.00035616,30]
[404776809,1770535641909,201.93286099,0.00035616,30]
[404776810,1770535642554,209.40437684,0.00035616,30]
[404776811,1770535643179,217.15233878,0.00035616,30]
[404776812,1770535643807,225.18697532,0.00035616,30]
[404776813,1770535644438,233.51889341,0.00035616,30]
[404776814,1770535645116,242.15909246,0.00035616,30]
[404776815,1770535645750,251.11897888,0.00035616,30]
[404776816,1770535646365,260.4103811,0.00035616,30]
[404776817,1770535647010,270.0455652,0.00035616,30]
[404776818,1770535647649,280.03725112,0.00035616,30]
[404776819,1770535648280,290.39862941,0.00035616,30]
[404776827,1770535649240,301.1433787,0.00035616,30]
[404776855,1770535803127,3630.13395114,0.00029352,120]
[404776869,1770535832040,-2413.61553984,0.000283,2]
[404776872,1770535832058,-1726.8840699,0.000283,2]
[404776874,1770535832155,-10690.04916161,0.000283,2]
[404776875,1770535832165,-207.23557636,0.0002839,2]
[404776876,1770535832175,-300.0,0.00028399,2]
[404776877,1770535832185,-146417.30990432,0.000284,2]
[404776878,1770535832197,-30109.50473085,0.000284,2]
[404776879,1770535832208,-959.12190981,0.000284,2]
[404776880,1770535832219,-2277.12736625,0.000284,2]
[404776881,1770535832230,-405.95984743,0.000284,2]
[404776883,1770535832307,-33887.56231544,0.000284,2]
[404776884,1770535832319,-341.348914,0.000284,2]
[404776888,1770535836543,166.66,0.00028086,30]
[404776889,1770535836734,166.66,0.00028677,30]
[404776890,1770535836945,166.66,0.00029268,30]
[404776891,1770535837156,166.66,0.0002986,30]
[404776892,1770535837352,166.66,0.00030451,30]
[404776893,1770535837540,166.66,0.00031042,30]
[404776897,1770535838265,-500.0,0.00028399,2]
[404776898,1770535838275,-231.94622019,0.00028399,2]
[404776899,1770535838284,-195.28348214,0.00028399,2]
[404776900,1770535838294,-500.0,0.00028399,2]
[404776901,1770535838303,-289.95212535,0.00028399,2]
[404776902,1770535838312,-500.0,0.00028399,2]
[404776903,1770535838322,-500.0,0.00028399,2]
[404776904,1770535838331,-500.0,0.00028399,2]
[404776905,1770535838342,-500.0,0.00028399,2]
[404776906,1770535838351,-500.0,0.00028399,2]
[404776907,1770535838361,-500.0,0.00028399,2]
[404776908,1770535838371,-500.0,0.00028399,2]
[404776909,1770535838380,-512.16206027,0.00028399,2]
[404776910,1770535838390,-500.0,0.00028399,2]
[404776911,1770535838400,-500.0,0.00028399,2]
[404776912,1770535838410,-500.0,0.00028399,2]
[404776913,1770535838420,-500.0,0.00028399,2]
[404776914,1770535838429,-500.0,0.00028399,2]
[404776915,1770535838438,-500.0,0.00028399,2]
[404776916,1770535838448,-500.0,0.00028399,2]
[404776917,1770535838458,-500.0,0.00028399,2]
[404776918,1770535838467,-500.0,0.00028399,2]
[404776919,1770535838476,-288.0,0.00028399,2]
[404776920,1770535838486,-465817.04376674,0.000284,2]
[404777003,1770535844157,-10938.89472325,0.000284,2]
[404777004,1770535844169,-827.78634361,0.000284,2]
[404777005,1770535845117,-324.97946918,0.000284,2]
[404777019,1770535846075,-1077.09581276,0.000284,2]
[404777027,1770535846160,-984.14314611,0.000284,2]
[404777029,1770535846172,-1779.5,0.000284,2]
[404777038,1770535846248,-1429.389,0.000284,2]
[404777818,1770535874039,250.72737502,0.00028373,30]
[404777827,1770535888130,151.0,0.0003526,31]
[404777828,1770535891371,151.0,0.0003526,31]
[404777829,1770535895178,151.0,0.0003526,31]
[404777830,1770535897863,151.0,0.0003526,31]
[404777832,1770535927194,2280.0,0.00035616,30]
[404777833,1770535928373,1249.0,0.00035616,30]
[404777836,1770535936496,151.0,0.00035616,30]
[404777837,1770535937132,156.587,0.00035616,30]
[404777838,1770535937824,162.380719,0.00035616,30]
[404777839,1770535938445,168.3888056,0.00035616,30]
[404777840,1770535939035,174.61919141,0.00035616,30]
[404777841,1770535939656,181.08010149,0.00035616,30]
[404777842,1770535940306,187.78006525,0.00035616,30]
[404777843,1770535941101,194.72792766,0.00035616,30]
[404777844,1770535941260,151.0,0.0003526,31]
[404777845,1770535941719,201.93286099,0.00035616,30]
[404777846,1770535942340,209.40437684,0.00035616,30]
[404777849,1770535942958,217.15233878,0.00035616,30]
[404777850,1770535943644,225.18697532,0.00035616,30]
[404777851,1770535944309,233.51889341,0.00035616,30]
[404777852,1770535944949,242.15909246,0.00035616,30]
[404777853,1770535945560,251.11897888,0.00035616,30]
[404777854,1770535946187,260.4103811,0.00035616,30]
[404777855,1770535946247,151.0,0.0003526,31]
[404777856,1770535946803,270.0455652,0.00035616,30]
[404777857,1770535947431,280.03725112,0.00035616,30]
[404777858,1770535948055,290.39862941,0.00035616,30]
[404777859,1770535948670,301.1433787,0.00035616,30]
[404777861,1770536018259,228.607132,0.0003526,31]
[404777862,1770536019789,228.607132,0.0003526,31]
[404777863,1770536021214,228.607132,0.0003526,31]
[404777864,1770536022666,228.607132,0.0003526,31]
[404777865,1770536048478,151.0,0.0003526,31]
[404777866,1770536076525,150.0,0.00028373,30]
[404777867,1770536106973,185.0,0.00035616,30]
[404777880,1770536255746,151.0,0.00035616,30]
[404777881,1770536256487,156.587,0.00035616,30]
[404777882,1770536257252,162.380719,0.00035616,30]
[404777883,1770536258029,168.3888056,0.00035616,30]
[404777884,1770536258687,174.61919141,0.00035616,30]
[404777885,1770536259318,181.08010149,0.00035616,30]
[404777886,1770536259983,187.78006525,0.00035616,30]
[404777887,1770536260610,194.72792766,0.00035616,30]
[404777888,1770536261274,201.93286099,0.00035616,30]
[404777889,1770536261918,209.40437684,0.00035616,30]
[404777890,1770536262539,217.15233878,0.00035616,30]
[404777891,1770536263235,244.37832388,0.00035616,30]
[404777894,1770536308746,151.0,0.0003526,30]
[404777896,1770536345795,151.0,0.0003526,31]
[404777901,1770536497666,601.752,0.00035506,42]
[404777902,1770536579945,201.56,0.00035616,30]
[404777903,1770536657307,216.79411765,0.00035589,120]
[404777943,1770536947780,151.0,0.0003526,31]
[404777947,1770537018254,500.0,0.00030399,30]
[404777948,1770537018533,500.0,0.00034457,30]
[404777951,1770537032197,-300.0,0.00027055,2]
[404777952,1770537032207,-162.402,0.00027056,2]
[404777953,1770537032216,-45.598,0.00027056,2]
[404777954,1770537032228,-401.1203333,0.00027056,2]
[404777955,1770537032243,-900.4276667,0.00027056,2]
[404777956,1770537032253,-98.5723333,0.00027056,2]
[404777957,1770537032264,-3385.4276667,0.00027056,2]
[404777958,1770537032274,-629.944,0.00027056,2]
[404777959,1770537032283,-1435.378,0.00027056,2]
[404777960,1770537032292,-150.505,0.00027056,2]
[404777961,1770537032302,-1272.0,0.00027056,2]
[404777962,1770537032314,-1206.0,0.00027056,2]
[404777963,1770537032323,-917.0,0.00027056,2]
[404777964,1770537032332,-3255.0,0.00027056,2]
[404777965,1770537032343,-150.13,0.00027056,2]
[404777966,1770537032352,-150.158,0.00027056,2]
[404777967,1770537032361,-150.0,0.00027056,2]
[404777968,1770537032372,-412.0,0.00027056,2]
[404777969,1770537032381,-150.0,0.00027056,2]
[404777970,1770537032396,-237.6225,0.000283,2]
[404777971,1770537032405,-90963.7440087,0.00028428,2]
[404777972,1770537032416,-9039.5757634,0.00028428,2]
[404777973,1770537032425,-154.55,0.00028706,2]
[404777974,1770537032435,-4821.38,0.00028724,2]
[404777975,1770537032444,-1000.0,0.00028889,2]
[404777976,1770537032453,-500.0,0.00028949,2]
[404777977,1770537032463,-200.0,0.00029031,2]
[404777978,1770537032472,-160.0,0.0002905,2]
[404777979,1770537032482,-10316.88529526,0.00029132,2]
[404777980,1770537032497,-45.25531649,0.00029132,2]
[404777981,1770537032507,-160.0,0.00029169,2]
[404777982,1770537032516,-258.7,0.00029178,2]
[404777983,1770537032524,-151.0,0.00029229,7]
[404777984,1770537032532,-153.24981983,0.00029231,2]
[404777985,1770537032540,-500.0,0.00029231,2]
[404777987,1770537032548,-87.75428117,0.00029231,2]
[404777991,1770537038476,-1000.0,0.00029132,2]
[404777992,1770537038486,-412.24571883,0.00029231,2]
[404777993,1770537038495,-500.0,0.00029231,2]
[404777994,1770537038504,-500.0,0.00029231,2]
[404777995,1770537038514,-500.0,0.00029231,2]
[404777996,1770537038523,-500.0,0.00029231,2]
[404777997,1770537038533,-500.0,0.00029231,2]
[404777998,1770537038543,-500.0,0.00029231,2]
[404777999,1770537038553,-500.0,0.00029231,2]
[404778000,1770537038565,-500.0,0.00029231,2]
[404778002,1770537038574,-500.0,0.00029231,2]
[404778004,1770537038583,-512.16206027,0.00029231,2]
[404778006,1770537038592,-500.0,0.00029231,2]
[404778008,1770537038601,-319.27189389,0.00029231,2]
[404778010,1770537038613,-180.72810611,0.00029231,2]
[404778012,1770537038623,-500.0,0.00029231,2]
[404778014,1770537038632,-500.0,0.00029231,2]
[404778016,1770537038642,-500.0,0.00029231,2]
[404778018,1770537038651,-117470.21,0.00029232,2]
[404778021,1770537038661,-258.7,0.00029232,2]
[404778022,1770537038671,-420.0,0.00029247,2]
[404778024,1770537038680,-200.0,0.00029266,2]
[404778026,1770537038690,-258.7,0.00029286,2]
[404778028,1770537038699,-503.23813055,0.00029286,2]
[404778029,1770537038708,-258.7,0.0002934,2]
[404778030,1770537038717,-258.7,0.00029393,2]
[404778031,1770537038726,-258.7,0.00029447,2]
[404778032,1770537038735,-258.7,0.00029501,2]
[404778033,1770537038745,-258.7,0.00029555,2]
[404778034,1770537038754,-258.7,0.00029608,2]
[404778035,1770537038764,-300.0,0.0002963,2]
[404778036,1770537038773,-258.7,0.00029662,2]
[404778037,1770537038782,-258.7,0.00029716,2]
[404778038,1770537038791,-2259.25,0.00029732,2]
[404778039,1770537038801,-5000.0,0.00029765,2]
[404778040,1770537038811,-258.7,0.0002977,2]
[404778041,1770537038820,-258.7,0.00029823,2]
[404778042,1770537038830,-1000.0,0.00029863,2]
[404778043,1770537038839,-258.7,0.00029877,2]
[404778044,1770537038848,-258.7,0.00029931,2]
[404778045,1770537038858,-150.0,0.00029976,2]
[404778046,1770537038868,-258.7,0.00029985,2]
[404778047,1770537038878,-258.7,0.00030038,2]
[404778048,1770537038888,-212.7,0.00030055,14]
[404778049,1770537038898,-1335.0,0.00030056,2]
[404778050,1770537038907,-3484.0,0.00030056,2]
[404778051,1770537038917,-616.0,0.00030056,2]
[404778052,1770537038927,-1411.0,0.00030056,2]
[404778053,1770537038937,-1272.0,0.00030056,2]
[404778054,1770537038946,-1206.0,0.00030056,2]
[404778055,1770537038956,-917.0,0.00030056,2]
[404778056,1770537038965,-3255.0,0.00030056,2]
[404778057,1770537038974,-150.0,0.00030056,2]
[404778058,1770537038984,-150.0,0.00030056,2]
[404778059,1770537038994,-150.0,0.00030056,2]
[404778060,1770537039003,-412.0,0.00030056,2]
[404778061,1770537039012,-150.0,0.00030056,2]
[404778062,1770537039022,-258.7,0.00030092,2]
[404778063,1770537039031,-258.7,0.00030146,2]
[404778064,1770537039041,-151.0,0.00030197,7]
[404778065,1770537039050,-258.7,0.000302,2]
[404778066,1770537039060,-566.98276012,0.00030299,2]
[404778067,1770537039070,-2500.0,0.000303,2]
[404778068,1770537039080,-212.7,0.00030329,14]
[404778069,1770537039090,-218.977161,0.00030451,14]
[404778070,1770537039100,-500.0,0.00030493,2]
[404778071,1770537039109,-119708.0,0.000305,2]
[404778072,1770537039119,-277.35679052,0.00030525,2]
[404778073,1770537039129,-18680.35416952,0.00030599,2]
[404778074,1770537039139,-212.7,0.00030603,14]
[404778075,1770537039149,-1000.0,0.000307,20]
[404778076,1770537039158,-5529.0,0.000307,3]
[404778077,1770537039168,-10362.1406117,0.00030793,2]
[404778078,1770537039178,-5529.0,0.000309,5]
[404778079,1770537039188,-248.02173749,0.00031073,2]
[404778080,1770537039198,-238.0,0.00031311,2]
[404778081,1770537039207,-587.0,0.00031618,2]
[404778082,1770537039217,-288.0,0.0003165,2]
[404778083,1770537039227,-354.0,0.00031918,2]
[404778084,1770537039237,-20296.7547683,0.00032028,2]
[404778085,1770537039247,-2017.0019877,0.0003204,2]
[404778086,1770537039256,-18680.35416951,0.00032097,2]
[404778087,1770537039266,-500.0,0.0003211,2]
[404778088,1770537039275,-566.98276011,0.00032268,2]